fUST/lending_fUST_20240705
["ID","MTS","AMOUNT","RATE_DAILY","PERIOD"]
[331252983,1720159860711,-500.0,0.0005589,120]
[331252984,1720159860720,-4175.33,0.0005589,120]
[331252985,1720159860729,-93.24950607,0.00058082,120]
[331252986,1720159860738,-500.0,0.00058082,120]
[331252987,1720159860747,-500.0,0.00058082,120]
[331252988,1720159860757,-500.0,0.00058082,120]
[331252989,1720159860766,-500.0,0.00058082,120]
[331252990,1720159860775,-500.0,0.00058082,120]
[331252991,1720159860784,-500.0,0.00058082,120]
[331252992,1720159860795,-500.0,0.00058082,120]
[331252993,1720159860805,-110.34073736,0.00058082,120]
[331252994,1720159860818,-389.65926264,0.00058082,120]
[331252995,1720159860827,-52.63073836,0.00058082,120]
[331252996,1720159860840,-396.97402,0.00058082,120]
[331252997,1720159860933,-153.0,0.00049288,120]
[331252998,1720159860942,-500.0,0.00049315,120]
[331252999,1720159860952,-283.83400403,0.00049315,120]
[331253003,1720160009166,922.8597104,9.999e-05,2]
[331253004,1720160009199,62.90897366,9.999e-05,2]
[331253005,1720160060049,290.48272297,9.999e-05,2]
[331253006,1720160075314,239.79216982,9.999e-05,2]
[331253019,1720160573164,239.45288622,0.0001212,2]
[331253020,1720160573203,884.90353829,0.0001212,2]
[331253021,1720160573241,248.55125534,0.0001212,2]
[331253022,1720160731582,-300.0,0.00014997,2]
[331253023,1720160731605,-300.0,0.00014997,2]
[331253024,1720160731630,-2356.48549844,0.00014998,2]
[331253027,1720160830694,-369.089067,0.00014998,2]
[331253029,1720160838168,-1295.62403954,0.00014998,2]
[331253030,1720160838424,-1290.05778501,0.00014998,2]
[331253031,1720160839896,-258.5109013,0.00014998,2]
[331253032,1720160845898,-554.97803326,0.00014998,2]
[331253087,1720161044743,-496.7595583,0.00014657,2]
[331253091,1720161044764,-3490.48560076,0.00014998,2]
[331253094,1720161044775,-300.0,0.00014998,2]
[331253097,1720161044787,-2627.01443181,0.00014999,2]
[331253223,1720161045885,-511.05463248,0.00014999,2]
[331253225,1720161045895,-3078.85157566,0.00014999,2]
[331253227,1720161045905,-379.10345466,0.00015,2]
[331253229,1720161045915,-169.089067,0.00015036,2]
[331253231,1720161045925,-18110.77096973,0.00016255,2]
[331253233,1720161045935,-34932.27430829,0.00016255,2]
[331253235,1720161045945,-166.666666,0.00016438,2]
[331253237,1720161045955,-1929.3896942,0.00016458,2]
[331253239,1720161045964,-166.666666,0.00016823,2]
[331253241,1720161045975,-166.666666,0.00017208,2]
[331253243,1720161045984,-166.666666,0.00017592,2]
[331253245,1720161045994,-166.666666,0.00017977,2]
[331253247,1720161046005,-166.666666,0.00018362,2]
[331253249,1720161046015,-197.13244658,0.00019,2]
[331253251,1720161046025,-812.31944159,0.00019,3]
[331253252,1720161046035,-250.0,0.00019041,2]
[331253254,1720161046044,-30000.0,0.00019164,2]
[331253256,1720161046054,-13432.1214245,0.0001979,2]
[331253258,1720161046064,-367.3673262,0.00019799,2]
[331253260,1720161046073,-363.64612698,0.00019799,2]
[331253261,1720161046083,-52100.07365113,0.000198,2]
[331253263,1720161046092,-13432.1214245,0.0001999,2]
[331253265,1720161046101,-225.53942994,0.0002,2]
[331253267,1720161046111,-427.95620224,0.0002,2]
[331253268,1720161046120,-293.1691109,0.0002,2]
[331253270,1720161046130,-1116.9418809,0.0002,2]
[331253272,1720161046140,-247.26523235,0.0002,2]
[331253273,1720161046150,-1724.35538883,0.0002,2]
[331253274,1720161046159,-3968.06642419,0.0002,2]
[331253275,1720161046169,-177.62408952,0.0002,2]
[331253276,1720161046179,-4172.94461587,0.0002,2]
[331253277,1720161046188,-763.20815407,0.0002,2]
[331253278,1720161046197,-159.284759,0.00021096,2]
[331253279,1720161046206,-417.634928,0.00021096,2]
[331253281,1720161046216,-160.09733992,0.00022,2]
[331253283,1720161046225,-3239.92770371,0.00022,2]
[331253284,1720161046236,-879.23230837,0.0002217,2]
[331253286,1720161046245,-169.089067,0.00022554,2]
[331253288,1720161046257,-200.0,0.00024658,15]
[331253290,1720161046266,-155.40443651,0.00024924,2]
[331253292,1720161046275,-293.33394095,0.00025,2]
[331253293,1720161046284,-17247.80566422,0.00025501,2]
[331253295,1720161046296,-12987.22292396,0.00025869,2]
[331253297,1720161046306,-417.634928,0.00027195,2]
[331253299,1720161046316,-13432.1214245,0.00027989,3]
[331253301,1720161046325,-13432.1214245,0.00027989,3]
[331253302,1720161046335,-268.30367969,0.00028,2]
[331253304,1720161046346,-157.43961241,0.00029334,2]
[331253306,1720161046355,-150.48625355,0.00029713,2]
[331253308,1720161046365,-1663.67205696,0.00029761,20]
[331253309,1720161046376,-284.22582068,0.0003,3]
[331253311,1720161046387,-351.32038796,0.0003,30]
[331253313,1720161046396,-471.27760912,0.0003,4]
[331253315,1720161046405,-642.76758109,0.0003,4]
[331253317,1720161046415,-1814.91497123,0.00030058,22]
[331253318,1720161046424,-1814.91497123,0.00030356,22]
[331253320,1720161046434,-1814.91497123,0.00030653,22]
[331253322,1720161046444,-1814.91497123,0.00030951,22]
[331253324,1720161046453,-1187.10316359,0.00031249,24]
[331253326,1720161046463,-161.42659871,0.00032667,7]
[331253327,1720161046473,-159.284759,0.00032685,2]
[331253329,1720161046483,-417.634928,0.00033295,2]
[331253331,1720161046492,-1402.70898806,0.00035999,4]
[331253333,1720161046502,-948.9256647,0.00037807,4]
[331253334,1720161046511,-533.36508077,0.00038499,4]
[331253336,1720161046521,-533.36508077,0.00038499,4]
[331253338,1720161046530,-155.04482031,0.00039177,4]
[331253339,1720161046540,-165.06658562,0.00039177,4]
[331253340,1720161046550,-154.71377951,0.000392,10]
[331253341,1720161046559,-417.634928,0.00039394,2]
[331253342,1720161046568,-13432.1214245,0.0003998,5]
[331253343,1720161046578,-3990.00210664,0.0003999,4]
[331253344,1720161046587,-151.0,0.0004,120]
[331253345,1720161046597,-151.0,0.0004,120]
[331253346,1720161046606,-1000.0,0.00041,41]
[331253347,1720161046616,-151.0,0.00041726,120]
[331253348,1720161046625,-150.48625355,0.00042478,2]
[331253349,1720161046634,-151.0,0.0004263,120]
[331253350,1720161046644,-1000.0,0.00043,43]
[331253351,1720161046653,-151.0,0.00043452,120]
[331253352,1720161046663,-159.284759,0.00044274,2]
[331253353,1720161046673,-1000.0,0.00045,45]
[331253354,1720161046683,-151.0,0.00045178,120]
[331253355,1720161046693,-151.0,0.0004526,120]
[331253356,1720161046703,-417.634928,0.00045494,2]
[331253358,1720161046712,-151.0,0.00046904,120]
[331253359,1720161046722,-1000.0,0.00047,47]
[331253361,1720161046732,-151.0,0.0004789,120]
[331253362,1720161046744,-151.0,0.0004863,120]
[331253363,1720161046757,-1000.0,0.00049,49]
[331253365,1720161046767,-13432.1214245,0.00049205,6]
[331253366,1720161046776,-88888.0,0.00049215,5]
[331253367,1720161046786,-13432.1214245,0.00049295,6]
[331253368,1720161046796,-13432.1214245,0.00049305,6]
[331253369,1720161046806,-290.27376141,0.00049315,4]
[331253370,1720161046816,-500.0,0.00049315,120]
[331253371,1720161046826,-500.0,0.00049315,120]
[331253373,1720161046835,-500.0,0.00049315,120]
[331253375,1720161046845,-297.85522228,0.00049315,120]
[331253377,1720161046855,-500.0,0.00049315,120]
[331253379,1720161046865,-500.0,0.00049315,120]
[331253381,1720161046874,-529.50033814,0.00049315,14]
[331253383,1720161046884,-500.0,0.00049315,120]
[331253384,1720161046893,-500.0,0.00049315,120]
[331253385,1720161046903,-500.0,0.00049315,120]
[331253386,1720161046912,-500.0,0.00049315,120]
[331253387,1720161046921,-500.0,0.00049315,120]
[331253388,1720161046931,-500.0,0.00049315,120]
[331253389,1720161046940,-500.0,0.00049315,120]
[331253390,1720161046952,-500.0,0.00049315,120]
[331253391,1720161046962,-500.0,0.00049315,120]
[331253392,1720161046971,-500.0,0.00049315,120]
[331253394,1720161046980,-622.08543279,0.00049315,120]
[331253396,1720161046990,-500.0,0.00049315,120]
[331253398,1720161047003,-500.0,0.00049315,120]
[331253399,1720161047012,-500.0,0.00049315,120]
[331253401,1720161047022,-500.0,0.00049315,120]
[331253403,1720161047032,-209.72095258,0.00049315,120]
[331253405,1720161047042,-500.0,0.00049315,120]
[331253407,1720161047053,-500.0,0.00049315,120]
[331253409,1720161047063,-500.0,0.00049315,120]
[331253410,1720161047073,-500.0,0.00049315,120]
[331253411,1720161047082,-500.0,0.00049315,120]
[331253412,1720161047092,-500.0,0.00049315,120]
[331253413,1720161047101,-500.0,0.00049315,120]
[331253414,1720161047111,-500.0,0.00049315,120]
[331253415,1720161047121,-999.0,0.00049315,120]
[331253416,1720161047131,-307.29,0.00049589,120]
[331253417,1720161047140,-154.71377951,0.0005,30]
[331253418,1720161047150,-4308.03496036,0.0005,60]
[331253419,1720161047161,-151.0,0.00050356,120]
[331253420,1720161047171,-151.0,0.00050521,120]
[331253421,1720161047182,-150.0,0.00051,85]
[331253422,1720161047192,-500.0,0.00051506,120]
[331253423,1720161047202,-500.0,0.00051506,120]
[331253424,1720161047211,-500.0,0.00051506,120]
[331253425,1720161047221,-500.0,0.00051506,120]
[331253426,1720161047230,-500.0,0.00051506,120]
[331253427,1720161047240,-500.0,0.00051506,120]
[331253428,1720161047253,-500.0,0.00051506,120]
[331253429,1720161047263,-500.0,0.00051506,120]
[331253430,1720161047273,-500.0,0.00051506,120]
[331253431,1720161047283,-500.0,0.00051506,120]
[331253432,1720161047293,-500.0,0.00051506,120]
[331253433,1720161047306,-500.0,0.00051506,120]
[331253434,1720161047316,-500.0,0.00051506,120]
[331253435,1720161047325,-500.0,0.00051506,120]
[331253436,1720161047335,-500.0,0.00051506,120]
[331253437,1720161047346,-500.0,0.00051506,120]
[331253438,1720161047355,-500.0,0.00051506,120]
[331253439,1720161047368,-500.0,0.00051506,120]
[331253440,1720161047380,-500.0,0.00051506,120]
[331253441,1720161047389,-500.0,0.00051506,120]
[331253442,1720161047399,-500.0,0.00051506,120]
[331253443,1720161047408,-417.634928,0.00051593,2]
[331253444,1720161047418,-800.0,0.0005169,120]
[331253445,1720161047428,-151.0,0.00052082,120]
[331253446,1720161047437,-2000.0,0.000525,120]
[331253447,1720161047447,-2000.0,0.000525,120]
[331253448,1720161047457,-2000.0,0.000525,120]
[331253449,1720161047466,-2000.0,0.000525,120]
[331253450,1720161047476,-13432.1214245,0.0005299,6]
[331253451,1720161047486,-1471.0,0.00053,120]
[331253452,1720161047495,-151.0,0.00053151,120]
[331253453,1720161047508,-155.0,0.0005356,67]
[331253454,1720161047517,-2000.0,0.00053598,2]
[331253455,1720161047526,-388.61989039,0.00053698,120]
[331253456,1720161047536,-500.0,0.00053698,120]
[331253457,1720161047546,-500.0,0.00053698,120]
[331253458,1720161047555,-500.0,0.00053698,120]
[331253459,1720161047567,-500.0,0.00053698,120]
[331253460,1720161047578,-500.0,0.00053698,120]
[331253461,1720161047588,-500.0,0.00053698,120]
[331253462,1720161047598,-500.0,0.00053698,120]
[331253463,1720161047607,-500.0,0.00053698,120]
[331253464,1720161047618,-500.0,0.00053698,120]
[331253465,1720161047627,-500.0,0.00053698,120]
[331253466,1720161047637,-500.0,0.00053698,120]
[331253467,1720161047647,-500.0,0.00053698,120]
[331253468,1720161047656,-511.47325304,0.00053698,120]
[331253469,1720161047666,-500.0,0.00053698,120]
[331253470,1720161047675,-500.0,0.00053698,120]
[331253471,1720161047685,-322.82536197,0.00053698,120]
[331253472,1720161047694,-500.0,0.00053698,120]
[331253473,1720161047703,-500.0,0.00053698,120]
[331253474,1720161047712,-433.94071389,0.00053698,120]
[331253475,1720161047722,-500.0,0.00053698,120]
[331253476,1720161047731,-151.0,0.00053808,120]
[331253477,1720161047742,-13432.1214245,0.0005449,6]
[331253478,1720161047755,-2000.0,0.000545,120]
[331253479,1720161047766,-2000.0,0.000545,120]
[331253480,1720161047777,-2000.0,0.000545,120]
[331253481,1720161047787,-2000.0,0.000545,120]
[331253482,1720161047796,-2000.0,0.000545,120]
[331253483,1720161047805,-2000.0,0.000545,120]
[331253484,1720161047815,-2000.0,0.000545,120]
[331253485,1720161047825,-2000.0,0.000545,120]
[331253486,1720161047835,-2000.0,0.000545,120]
[331253487,1720161047845,-2000.0,0.000545,120]
[331253488,1720161047856,-13432.1214245,0.00054774,6]
[331253489,1720161047866,-53728.485698,0.00054784,6]
[331253490,1720161047875,-500.0,0.00054794,120]
[331253491,1720161047884,-509.77383217,0.00054794,120]
[331253492,1720161047894,-500.0,0.00054794,120]
[331253493,1720161047903,-200.0,0.00054794,7]
[331253494,1720161047912,-500.0,0.00054794,120]
[331253495,1720161047922,-500.0,0.00054794,120]
[331253496,1720161047931,-500.0,0.00054794,120]
[331253497,1720161047940,-500.0,0.00054794,120]
[331253498,1720161047950,-500.0,0.00054794,120]
[331253499,1720161047960,-500.0,0.00054794,120]
[331253500,1720161047970,-500.0,0.00054794,120]
[331253501,1720161047985,-300.37779128,0.00054794,120]
[331253502,1720161047996,-500.0,0.00054794,120]
[331253503,1720161048011,-500.0,0.00054794,120]
[331253504,1720161048022,-500.0,0.00054794,120]
[331253505,1720161048032,-500.0,0.00054794,120]
[331253506,1720161048044,-500.0,0.00054794,120]
[331253507,1720161048054,-500.0,0.00054794,120]
[331253508,1720161048064,-500.0,0.00054794,120]
[331253509,1720161048074,-341.98896526,0.00054794,120]
[331253510,1720161048084,-500.0,0.00054794,120]
[331253511,1720161048094,-774.94,0.00054794,120]
[331253512,1720161048103,-500.0,0.00054794,120]
[331253513,1720161048113,-520.89678665,0.00054794,120]
[331253514,1720161048123,-500.0,0.00054794,120]
[331253515,1720161048132,-500.0,0.00054794,120]
[331253516,1720161048142,-512.93340753,0.00054794,120]
[331253517,1720161048151,-575.76275457,0.00054794,120]
[331253518,1720161048160,-1040.79,0.00054794,120]
[331253519,1720161048169,-368.68610691,0.00054794,120]
[331253520,1720161048179,-500.0,0.00054794,120]
[331253521,1720161048188,-500.0,0.00054794,120]
[331253522,1720161048198,-500.0,0.00054794,120]
[331253523,1720161048207,-500.0,0.00054794,120]
[331253524,1720161048217,-776.98,0.00054794,120]
[331253525,1720161048226,-500.0,0.00054794,120]
[331253526,1720161048236,-500.0,0.00054794,120]
[331253527,1720161048245,-500.0,0.00054794,120]
[331253528,1720161048258,-500.0,0.00054794,120]
[331253529,1720161048267,-500.0,0.00054794,120]
[331253531,1720161048276,-500.0,0.00054794,120]
[331253533,1720161048285,-500.0,0.00054794,120]
[331253534,1720161048298,-500.0,0.00054794,120]
[331253536,1720161048308,-778.44,0.00054794,120]
[331253538,1720161048317,-500.0,0.00054794,20]
[331253539,1720161048327,-1334.42,0.00054794,120]
[331253540,1720161048338,-500.0,0.00054794,120]
[331253541,1720161048347,-500.0,0.00054794,120]
[331253542,1720161048501,-500.0,0.00054794,120]
[331253543,1720161048511,-500.0,0.00054794,120]
[331253544,1720161048523,-500.0,0.00054794,120]
[331253545,1720161048532,-876.06,0.00054794,120]
[331253546,1720161048542,-500.0,0.00054794,120]
[331253547,1720161048551,-500.0,0.00054794,120]
[331253548,1720161048560,-500.0,0.00054794,120]
[331253549,1720161048570,-500.0,0.00054794,120]
[331253550,1720161048578,-500.0,0.00054794,120]
[331253551,1720161048588,-500.0,0.00054794,120]
[331253552,1720161048597,-500.0,0.00054794,120]
[331253553,1720161048607,-500.0,0.00054794,120]
[331253554,1720161048617,-500.0,0.00054794,120]
[331253555,1720161048626,-500.0,0.00054794,120]
[331253556,1720161048636,-500.0,0.00054794,120]
[331253557,1720161048646,-500.0,0.00054794,120]
[331253558,1720161048656,-500.0,0.00054794,120]
[331253559,1720161048666,-780.42,0.00054794,120]
[331253560,1720161048676,-500.0,0.00054794,120]
[331253561,1720161048685,-500.0,0.00054794,120]
[331253562,1720161048695,-983.03,0.00054794,120]
[331253563,1720161048704,-7842.55,0.00054794,120]
[331253564,1720161048714,-500.0,0.00054794,120]
[331253565,1720161048723,-500.0,0.00054794,120]
[331253566,1720161048733,-500.0,0.00054794,120]
[331253567,1720161048744,-490.91127343,0.00054794,120]
[331253568,1720161048756,-500.0,0.00054794,120]
[331253569,1720161048766,-524.80255849,0.00054794,120]
[331253570,1720161048776,-500.0,0.00054794,120]
[331253571,1720161048786,-500.0,0.00054794,120]
[331253572,1720161048796,-500.0,0.00054794,120]
[331253573,1720161048806,-500.0,0.00054794,120]
[331253574,1720161048815,-500.0,0.00054794,30]
[331253575,1720161048825,-500.0,0.00054794,120]
[331253576,1720161048834,-500.0,0.00054794,120]
[331253577,1720161048844,-500.0,0.00054794,120]
[331253578,1720161048854,-500.0,0.00054794,120]
[331253579,1720161048864,-500.0,0.00054794,120]
[331253580,1720161048873,-500.0,0.00054794,120]
[331253581,1720161048883,-500.0,0.00054794,120]
[331253582,1720161048892,-584.4,0.00054794,120]
[331253583,1720161048903,-597.40479711,0.00054794,120]
[331253584,1720161048913,-504.25480397,0.00054794,120]
[331253585,1720161048922,-500.0,0.00054794,120]
[331253586,1720161048932,-500.0,0.00054794,120]
[331253587,1720161048941,-518.19890981,0.00054794,120]
[331253588,1720161048951,-500.0,0.00054794,120]
[331253589,1720161048960,-500.0,0.00054794,120]
[331253590,1720161048970,-434.17790475,0.00054794,120]
[331253591,1720161048980,-500.0,0.00054794,120]
[331253592,1720161048989,-500.0,0.00054794,120]
[331253593,1720161049001,-500.0,0.00054794,120]
[331253594,1720161049010,-500.0,0.00054794,120]
[331253595,1720161049020,-500.0,0.00054794,120]
[331253596,1720161049029,-500.0,0.00054794,120]
[331253597,1720161049038,-500.0,0.00054794,120]
[331253598,1720161049048,-500.0,0.00054794,120]
[331253599,1720161049057,-670.8,0.00054794,120]
[331253600,1720161049066,-500.0,0.00054794,120]
[331253601,1720161049076,-500.0,0.00054794,120]
[331253602,1720161049085,-500.0,0.00054794,120]
[331253603,1720161049095,-500.0,0.00054794,120]
[331253604,1720161049104,-500.0,0.00054794,120]
[331253605,1720161049114,-500.0,0.00054794,120]
[331253606,1720161049123,-500.0,0.00054794,120]
[331253607,1720161049133,-500.0,0.00054794,120]
[331253608,1720161049142,-731.58,0.00054794,120]
[331253609,1720161049151,-500.0,0.00054794,120]
[331253610,1720161049161,-508.87221865,0.00054794,120]
[331253611,1720161049170,-500.0,0.00054794,120]
[331253612,1720161049179,-512.08806021,0.00054794,120]
[331253613,1720161049188,-500.0,0.00054794,120]
[331253614,1720161049198,-500.0,0.00054794,120]
[331253615,1720161049207,-500.0,0.00054794,120]
[331253616,1720161049217,-500.0,0.00054794,120]
[331253617,1720161049226,-500.0,0.00054794,120]
[331253618,1720161049235,-500.0,0.00054794,120]
[331253619,1720161049245,-667.14,0.00054794,120]
[331253620,1720161049256,-500.0,0.00054794,120]
[331253621,1720161049266,-500.0,0.00054794,120]
[331253622,1720161049275,-500.0,0.00054794,120]
[331253623,1720161049284,-500.0,0.00054794,120]
[331253624,1720161049294,-3106.8,0.00054794,120]
[331253625,1720161049307,-808.47,0.00054794,120]
[331253626,1720161049316,-3479.45,0.00054794,120]
[331253627,1720161049326,-500.0,0.00054794,120]
[331253628,1720161049335,-691.25,0.00054794,120]
[331253629,1720161049345,-500.0,0.00054794,120]
[331253630,1720161049355,-500.0,0.00054794,120]
[331253631,1720161049365,-574.85,0.00054794,120]
[331253632,1720161049375,-500.0,0.00054794,120]
[331253633,1720161049387,-500.0,0.00054794,120]
[331253634,1720161049397,-500.0,0.00054794,120]
[331253635,1720161049407,-500.0,0.00054794,120]
[331253636,1720161049416,-500.0,0.00054794,120]
[331253637,1720161049425,-172.98246066,0.00054794,120]
[331253638,1720161049435,-500.0,0.00054794,120]
[331253639,1720161049444,-786.58,0.00054794,120]
[331253640,1720161049453,-500.0,0.00054794,120]
[331253641,1720161049463,-500.0,0.00054794,120]
[331253642,1720161049473,-500.0,0.00054794,120]
[331253643,1720161049482,-1949.52,0.00054794,120]
[331253644,1720161049492,-500.0,0.00054794,120]
[331253645,1720161049502,-500.0,0.00054794,120]
[331253646,1720161049512,-639.27,0.00054794,120]
[331253647,1720161049521,-500.0,0.00054794,120]
[331253648,1720161049530,-500.0,0.00054794,120]
[331253649,1720161049540,-500.0,0.00054794,120]
[331253650,1720161049549,-199.30313638,0.00054794,120]
[331253651,1720161049559,-500.0,0.00054794,120]
[331253652,1720161049568,-3989.98,0.00054794,120]
[331253653,1720161049578,-500.0,0.00054794,120]
[331253654,1720161049587,-500.0,0.00054794,120]
[331253655,1720161049597,-500.0,0.00054794,120]
[331253656,1720161049607,-500.0,0.00054794,120]
[331253657,1720161049616,-1086.21,0.00054794,120]
[331253658,1720161049625,-1842.02,0.00054794,120]
[331253659,1720161049635,-500.0,0.00054794,120]
[331253660,1720161049644,-500.0,0.00054794,120]
[331253661,1720161049654,-505.4,0.00054794,120]
[331253662,1720161049664,-436.48249145,0.00054794,120]
[331253663,1720161049673,-500.0,0.00054794,120]
[331253664,1720161049682,-801.37,0.00054794,120]
[331253665,1720161049692,-500.0,0.00054794,120]
[331253666,1720161049702,-500.0,0.00054794,120]
[331253667,1720161049711,-502.93042896,0.00054794,120]
[331253668,1720161049721,-500.0,0.00054794,120]
[331253669,1720161049731,-500.0,0.00054794,120]
[331253670,1720161049741,-509.95246478,0.00054794,120]
[331253671,1720161049752,-500.0,0.00054794,120]
[331253672,1720161049762,-500.0,0.00054794,120]
[331253673,1720161049773,-500.0,0.00054794,120]
[331253674,1720161049782,-500.0,0.00054794,120]
[331253675,1720161049792,-4019.79,0.00054794,120]
[331253676,1720161049801,-11862.09,0.00054794,120]
[331253677,1720161049811,-677.63,0.00054794,120]
[331253678,1720161049820,-500.0,0.00054794,120]
[331253679,1720161049830,-1092.71,0.00054794,120]
[331253680,1720161049839,-500.0,0.00054794,2]
[331253681,1720161049848,-500.0,0.00054794,120]
[331253682,1720161049858,-2373.77,0.00054794,120]
[331253683,1720161049867,-500.0,0.00054794,120]
[331253684,1720161049877,-500.0,0.00054794,120]
[331253685,1720161049886,-710.01,0.00054794,120]
[331253686,1720161049895,-500.0,0.00054794,120]
[331253687,1720161049904,-500.0,0.00054794,120]
[331253688,1720161049914,-500.0,0.00054794,120]
[331253689,1720161049923,-307.08854779,0.00054794,120]
[331253690,1720161049933,-435.48508633,0.00054794,120]
[331253691,1720161049942,-687.88,0.00054794,120]
[331253692,1720161049951,-500.0,0.00054794,120]
[331253693,1720161049961,-500.0,0.00054794,120]
[331253694,1720161049971,-500.0,0.00054794,120]
[331253695,1720161049981,-500.0,0.00054794,120]
[331253696,1720161049991,-2188.27,0.00054794,120]
[331253697,1720161050001,-1801.09,0.00054794,120]
[331253698,1720161050011,-500.0,0.00054794,120]
[331253699,1720161050020,-500.0,0.00054794,120]
[331253700,1720161050029,-500.0,0.00054794,120]
[331253701,1720161050039,-1114.43,0.00054794,120]
[331253702,1720161050048,-500.0,0.00054794,120]
[331253703,1720161050057,-521.79,0.00054794,120]
[331253704,1720161050066,-500.0,0.00054794,120]
[331253705,1720161050076,-1349.02,0.00054794,120]
[331253706,1720161050085,-500.0,0.00054794,120]
[331253707,1720161050095,-500.0,0.00054794,120]
[331253708,1720161050104,-500.0,0.00054794,120]
[331253709,1720161050113,-1279.0,0.00054794,120]
[331253710,1720161050122,-500.0,0.00054794,120]
[331253711,1720161050131,-500.0,0.00054794,120]
[331253712,1720161050141,-500.0,0.00054794,120]
[331253713,1720161050151,-500.0,0.00054794,120]
[331253714,1720161050161,-803.11,0.00054794,120]
[331253715,1720161050171,-859.99,0.00054794,120]
[331253716,1720161050181,-500.0,0.00054794,120]
[331253717,1720161050191,-500.0,0.00054794,120]
[331253718,1720161050200,-500.0,0.00054794,120]
[331253719,1720161050210,-500.0,0.00054794,120]
[331253720,1720161050219,-500.0,0.00054794,120]
[331253721,1720161050228,-2024.24,0.00054794,120]
[331253722,1720161050238,-500.0,0.00054794,120]
[331253723,1720161050247,-1069.58,0.00054794,120]
[331253724,1720161050260,-512.72904968,0.00054794,120]
[331253725,1720161050270,-500.0,0.00054794,120]
[331253726,1720161050279,-10664.38,0.00054794,120]
[331253727,1720161050290,-500.0,0.00054794,60]
[331253728,1720161050305,-4002.1,0.00054794,120]
[331253729,1720161050316,-500.0,0.00054794,120]
[331253730,1720161050327,-216.16599597,0.00054794,120]
[331253731,1720161050336,-14357.76,0.00054794,120]
[331253732,1720161050347,-500.0,0.00054794,120]
[331253733,1720161050356,-500.0,0.00054794,120]
[331253734,1720161050365,-500.0,0.00054794,120]
[331253735,1720161050375,-500.0,0.00054794,120]
[331253736,1720161050385,-500.0,0.00054794,120]
[331253737,1720161050394,-500.0,0.00054794,120]
[331253738,1720161050403,-633.89612101,0.00054794,120]
[331253739,1720161050412,-500.0,0.00054794,120]
[331253740,1720161050421,-500.0,0.00054794,120]
[331253741,1720161050430,-500.0,0.00054794,120]
[331253742,1720161050440,-500.0,0.00054794,120]
[331253743,1720161050449,-500.0,0.00054794,120]
[331253744,1720161050458,-500.0,0.00054794,120]
[331253745,1720161050468,-500.0,0.00054794,120]
[331253746,1720161050478,-228.68794978,0.00054794,120]
[331253747,1720161050487,-500.0,0.00054794,120]
[331253748,1720161050496,-1580.21,0.00054794,21]
[331253749,1720161050507,-531.10345192,0.00054794,120]
[331253750,1720161050516,-500.0,0.00054794,120]
[331253751,1720161050525,-500.0,0.00054794,120]
[331253752,1720161050535,-500.0,0.00054794,120]
[331253753,1720161050544,-500.0,0.00054794,120]
[331253754,1720161050553,-500.0,0.00054794,120]
[331253755,1720161050564,-500.0,0.00054795,120]
[331253756,1720161050573,-500.0,0.00054795,120]